[Event "Titled Tuesday Blitz February 07 Early 2023"]
[White "Korobov, Anton"]
[Black "Shuvalova, Polina"]
[WhiteFideId "14105730"]
[BlackFideId "24171760"]
[WhiteElo "2664"]
[BlackElo "2484"]
[Result "0-1"]
[Round "02"]
[TimeControl "180+2"]
[Date "2023.02.07"]
[WhiteClock "0:00:04"]
[BlackClock "0:00:04"]

1. d4 {[%clk 0:02:52]}  Nf6 {[%clk 0:02:59]} 2. c4 {[%clk 0:02:51]}  e6 {[%clk 0:02:59]} 3. Nc3 {[%clk 0:02:51]}  Bb4 {[%clk 0:02:59]} 4. e3 {[%clk 0:02:51]}  O-O {[%clk 0:02:58]} 5. Bd3 {[%clk 0:02:51]}  c5 {[%clk 0:02:55]} 6. Nf3 {[%clk 0:02:50]}  d5 {[%clk 0:02:49]} 7. O-O {[%clk 0:02:50]}  cxd4 {[%clk 0:02:48]} 8. exd4 {[%clk 0:02:50]}  dxc4 {[%clk 0:02:48]} 9. Bxc4 {[%clk 0:02:51]}  b6 {[%clk 0:02:49]} 10. Bg5 {[%clk 0:02:50]}  Bb7 {[%clk 0:02:48]} 11. Re1 {[%clk 0:02:51]}  Nbd7 {[%clk 0:02:40]} 12. Rc1 {[%clk 0:02:48]}  Bxc3 {[%clk 0:02:37]} 13. Rxc3 {[%clk 0:02:48]}  Rc8 {[%clk 0:02:34]} 14. Nd2 {[%clk 0:02:31]}  Re8 {[%clk 0:02:20]} 15. Bb5 {[%clk 0:02:19]}  Rxc3 {[%clk 0:02:06]} 16. bxc3 {[%clk 0:02:20]}  Re7 {[%clk 0:01:53]} 17. Qa4 {[%clk 0:01:56]}  Nf8 {[%clk 0:01:49]} 18. Bxf6 {[%clk 0:01:37]}  gxf6 {[%clk 0:01:50]} 19. Bf1 {[%clk 0:01:36]}  Ng6 {[%clk 0:01:47]} 20. Re3 {[%clk 0:01:32]}  Rc7 {[%clk 0:01:41]} 21. Nb3 {[%clk 0:01:22]}  a6 {[%clk 0:01:10]} 22. c4 {[%clk 0:01:11]}  f5 {[%clk 0:01:01]} 23. Qb4 {[%clk 0:01:02]}  Rd7 {[%clk 0:00:59]} 24. c5 {[%clk 0:00:58]}  b5 {[%clk 0:00:50]} 25. Rc3 {[%clk 0:00:49]}  Bc6 {[%clk 0:00:49]} 26. Na5 {[%clk 0:00:42]}  Ne7 {[%clk 0:00:45]} 27. Rg3+ {[%clk 0:00:39]}  Kf8 {[%clk 0:00:27]} 28. Qd2 {[%clk 0:00:36]}  Be4 {[%clk 0:00:22]} 29. Qh6+ {[%clk 0:00:20]}  Ke8 {[%clk 0:00:22]} 30. Nb3 {[%clk 0:00:21]}  Ng6 {[%clk 0:00:17]} 31. Qxh7 {[%clk 0:00:21]}  a5 {[%clk 0:00:13]} 32. Qg7 {[%clk 0:00:18]}  a4 {[%clk 0:00:10]} 33. Bxb5 {[%clk 0:00:17]}  axb3 {[%clk 0:00:08]} 34. axb3 {[%clk 0:00:18]}  f4 {[%clk 0:00:07]} 35. Rh3 {[%clk 0:00:17]}  Ke7 {[%clk 0:00:07]} 36. Rh6 {[%clk 0:00:15]}  Rxd4 {[%clk 0:00:06]} 37. h4 {[%clk 0:00:14]}  Rd1+ {[%clk 0:00:06]} 38. Kh2 {[%clk 0:00:14]}  f3 {[%clk 0:00:07]} 39. g3 {[%clk 0:00:08]}  Rd2 {[%clk 0:00:07]} 40. h5 {[%clk 0:00:06]}  Rxf2+ {[%clk 0:00:07]} 41. Kh3 {[%clk 0:00:07]}  Qd1 {[%clk 0:00:04]} 42. hxg6 {[%clk 0:00:05]}  Qh1+ {[%clk 0:00:02]} 43. Kg4 {[%clk 0:00:06]}  Bf5+ {[%clk 0:00:03]} 44. Kg5 {[%clk 0:00:04]}  Qc1+ {[%clk 0:00:04]} 45. Kh4 {[%clk 0:00:04]}  Rh2# {[%clk 0:00:04]} 0-1


[Site "https://www.chess.com"]

[Event "Titled Tuesday Blitz February 07 Early 2023"]
[White "Ibarra Jerez, Jose Carlos"]
[Black "Panesso Rivera, Henry"]
[WhiteFideId "2226332"]
[BlackFideId "4402707"]
[WhiteElo "2563"]
[BlackElo "2342"]
[Result "1-0"]
[Round "02"]
[TimeControl "180+2"]
[Date "2023.02.07"]
[WhiteClock "0:00:05"]
[BlackClock "0:00:01"]

1. e4 {[%clk 0:03:00]}  d6 {[%clk 0:02:55]} 2. d4 {[%clk 0:03:00]}  Nf6 {[%clk 0:02:55]} 3. Nc3 {[%clk 0:03:01]}  g6 {[%clk 0:02:55]} 4. Bg5 {[%clk 0:03:01]}  h6 {[%clk 0:02:51]} 5. Bh4 {[%clk 0:03:01]}  Nc6 {[%clk 0:02:47]} 6. f4 {[%clk 0:03:00]}  Nh5 {[%clk 0:02:39]} 7. f5 {[%clk 0:02:56]}  Bg7 {[%clk 0:02:31]} 8. Nf3 {[%clk 0:02:45]}  gxf5 {[%clk 0:02:21]} 9. d5 {[%clk 0:02:38]}  Nb8 {[%clk 0:02:04]} 10. Nd4 {[%clk 0:02:38]}  fxe4 {[%clk 0:01:47]} 11. Ne6 {[%clk 0:02:38]}  fxe6 {[%clk 0:01:34]} 12. Qxh5+ {[%clk 0:02:38]}  Kf8 {[%clk 0:01:34]} 13. Bc4 {[%clk 0:02:32]}  e5 {[%clk 0:01:20]} 14. O-O+ {[%clk 0:02:29]}  Bf6 {[%clk 0:01:20]} 15. Nxe4 {[%clk 0:02:27]}  Nd7 {[%clk 0:01:09]} 16. Nxf6 {[%clk 0:02:00]}  Nxf6 {[%clk 0:01:02]} 17. Bxf6 {[%clk 0:01:59]}  exf6 {[%clk 0:01:00]} 18. Qg6 {[%clk 0:01:57]}  f5 {[%clk 0:00:48]} 19. Rxf5+ {[%clk 0:01:55]}  Bxf5 {[%clk 0:00:46]} 20. Rf1 {[%clk 0:01:55]}  Qe8 {[%clk 0:00:19]} 21. Rxf5+ {[%clk 0:01:17]}  Ke7 {[%clk 0:00:19]} 22. Qf6+ {[%clk 0:01:04]}  Kd7 {[%clk 0:00:19]} 23. Bb5+ {[%clk 0:01:04]}  c6 {[%clk 0:00:19]} 24. Qg7+ {[%clk 0:00:45]}  Kd8 {[%clk 0:00:14]} 25. Qxb7 {[%clk 0:00:39]}  Rc8 {[%clk 0:00:14]} 26. Rf7 {[%clk 0:00:13]}  Qxf7 {[%clk 0:00:15]} 27. Qxf7 {[%clk 0:00:13]}  cxb5 {[%clk 0:00:15]} 28. Qxa7 {[%clk 0:00:13]}  Re8 {[%clk 0:00:11]} 29. Qb6+ {[%clk 0:00:13]}  Ke7 {[%clk 0:00:11]} 30. Qxb5 {[%clk 0:00:10]}  Rxc2 {[%clk 0:00:10]} 31. Qb7+ {[%clk 0:00:09]}  Kf6 {[%clk 0:00:10]} 32. Qd7 {[%clk 0:00:08]}  Rec8 {[%clk 0:00:07]} 33. Qxd6+ {[%clk 0:00:08]}  Kf5 {[%clk 0:00:08]} 34. Qe6+ {[%clk 0:00:08]}  Ke4 {[%clk 0:00:09]} 35. h3 {[%clk 0:00:07]}  Rf8 {[%clk 0:00:01]} 36. Qxh6 {[%clk 0:00:05]} 1-0


[Site "https://www.chess.com"]

[Event "Titled Tuesday Blitz February 07 Early 2023"]
[White "tuschessCM1"]
[Black "Nguyen, Ngoc Truong Son"]
[BlackFideId "12401110"]
[WhiteElo "2638"]
[BlackElo "2645"]
[Result "0-1"]
[Round "02"]
[TimeControl "180+2"]
[Date "2023.02.07"]
[WhiteClock "0:00:01"]
[BlackClock "0:00:09"]

1. c4 {[%clk 0:02:59]}  e6 {[%clk 0:02:57]} 2. Nf3 {[%clk 0:02:53]}  d5 {[%clk 0:02:56]} 3. e3 {[%clk 0:02:52]}  Nf6 {[%clk 0:02:54]} 4. b3 {[%clk 0:02:52]}  g6 {[%clk 0:02:53]} 5. Bb2 {[%clk 0:02:51]}  Bg7 {[%clk 0:02:53]} 6. Be2 {[%clk 0:02:51]}  O-O {[%clk 0:02:52]} 7. O-O {[%clk 0:02:51]}  c5 {[%clk 0:02:51]} 8. cxd5 {[%clk 0:02:46]}  exd5 {[%clk 0:02:50]} 9. d4 {[%clk 0:02:34]}  b6 {[%clk 0:02:49]} 10. Nc3 {[%clk 0:02:32]}  Bb7 {[%clk 0:02:43]} 11. Rc1 {[%clk 0:02:28]}  Nbd7 {[%clk 0:02:40]} 12. Qc2 {[%clk 0:01:56]}  Qe7 {[%clk 0:02:33]} 13. Rfd1 {[%clk 0:01:55]}  Rfc8 {[%clk 0:02:28]} 14. Qb1 {[%clk 0:01:52]}  a6 {[%clk 0:02:20]} 15. a4 {[%clk 0:01:46]}  Ne4 {[%clk 0:01:59]} 16. a5 {[%clk 0:01:33]}  cxd4 {[%clk 0:01:44]} 17. Nxd4 {[%clk 0:01:27]}  bxa5 {[%clk 0:01:43]} 18. Bg4 {[%clk 0:00:40]}  Nxf2 {[%clk 0:01:34]} 19. Kxf2 {[%clk 0:00:06]}  Qh4+ {[%clk 0:01:33]} 20. Kg1 {[%clk 0:00:07]}  Qxg4 {[%clk 0:01:34]} 21. Rf1 {[%clk 0:00:05]}  Re8 {[%clk 0:01:12]} 22. Nd1 {[%clk 0:00:04]}  Rac8 {[%clk 0:01:05]} 23. Rxc8 {[%clk 0:00:03]}  Bxc8 {[%clk 0:01:05]} 24. Bc3 {[%clk 0:00:03]}  Nc5 {[%clk 0:00:42]} 25. Bxa5 {[%clk 0:00:02]}  Bxd4 {[%clk 0:00:35]} 26. exd4 {[%clk 0:00:02]}  Ne4 {[%clk 0:00:32]} 27. Nf2 {[%clk 0:00:01]}  Nxf2 {[%clk 0:00:30]} 28. Rxf2 {[%clk 0:00:02]}  Bf5 {[%clk 0:00:31]} 29. Qc1 {[%clk 0:00:02]}  h5 {[%clk 0:00:27]} 30. Bd2 {[%clk 0:00:02]}  h4 {[%clk 0:00:25]} 31. h3 {[%clk 0:00:02]}  Qxd4 {[%clk 0:00:22]} 32. Bc3 {[%clk 0:00:02]}  Qe3 {[%clk 0:00:22]} 33. Qxe3 {[%clk 0:00:02]}  Rxe3 {[%clk 0:00:22]} 34. Bf6 {[%clk 0:00:02]}  Rxb3 {[%clk 0:00:19]} 35. Re2 {[%clk 0:00:03]}  Be4 {[%clk 0:00:18]} 36. Bxh4 {[%clk 0:00:03]}  f5 {[%clk 0:00:15]} 37. Bf6 {[%clk 0:00:03]}  Kf7 {[%clk 0:00:15]} 38. Bd4 {[%clk 0:00:03]}  Rb4 {[%clk 0:00:15]} 39. Bc3 {[%clk 0:00:03]}  Rc4 {[%clk 0:00:15]} 40. Be5 {[%clk 0:00:04]}  d4 {[%clk 0:00:15]} 41. Rb2 {[%clk 0:00:04]}  d3 {[%clk 0:00:15]} 42. Kf2 {[%clk 0:00:04]}  Ke6 {[%clk 0:00:14]} 43. Bf4 {[%clk 0:00:04]}  Bxg2 {[%clk 0:00:14]} 44. Rb6+ {[%clk 0:00:03]}  Bc6 {[%clk 0:00:13]} 45. Ke3 {[%clk 0:00:02]}  a5 {[%clk 0:00:12]} 46. Kxd3 {[%clk 0:00:02]}  Kd5 {[%clk 0:00:10]} 47. Be3 {[%clk 0:00:01]}  f4 {[%clk 0:00:09]} 0-1


[Site "https://www.chess.com"]

[Event "Titled Tuesday Blitz February 07 Early 2023"]
[White "Vokhidov, Shamsiddin"]
[Black "Seemann, Jakub"]
[WhiteFideId "14204223"]
[BlackFideId "21874697"]
[WhiteElo "2586"]
[BlackElo "2446"]
[Result "1-0"]
[Round "02"]
[TimeControl "180+2"]
[Date "2023.02.07"]
[WhiteClock "0:01:05"]
[BlackClock "0:00:01"]

1. c4 {[%clk 0:03:00]}  Nf6 {[%clk 0:02:59]} 2. Nc3 {[%clk 0:03:00]}  g6 {[%clk 0:03:00]} 3. g3 {[%clk 0:03:00]}  Bg7 {[%clk 0:03:00]} 4. Bg2 {[%clk 0:03:01]}  O-O {[%clk 0:03:00]} 5. Nf3 {[%clk 0:03:02]}  d6 {[%clk 0:03:01]} 6. d4 {[%clk 0:03:02]}  Nc6 {[%clk 0:03:01]} 7. O-O {[%clk 0:03:02]}  Bg4 {[%clk 0:03:02]} 8. h3 {[%clk 0:03:01]}  Bxf3 {[%clk 0:03:02]} 9. Bxf3 {[%clk 0:03:02]}  Nd7 {[%clk 0:03:03]} 10. e3 {[%clk 0:03:02]}  e5 {[%clk 0:03:03]} 11. Ne2 {[%clk 0:02:48]}  exd4 {[%clk 0:02:54]} 12. Nxd4 {[%clk 0:02:42]}  Nde5 {[%clk 0:02:53]} 13. Nxc6 {[%clk 0:02:38]}  bxc6 {[%clk 0:02:49]} 14. Be2 {[%clk 0:02:36]}  Rb8 {[%clk 0:02:48]} 15. Rb1 {[%clk 0:02:36]}  c5 {[%clk 0:02:33]} 16. b3 {[%clk 0:02:36]}  Qd7 {[%clk 0:02:29]} 17. h4 {[%clk 0:02:30]}  Rfe8 {[%clk 0:02:24]} 18. Bb2 {[%clk 0:02:30]}  h5 {[%clk 0:02:23]} 19. Qd5 {[%clk 0:02:28]}  Qe6 {[%clk 0:02:12]} 20. Rbd1 {[%clk 0:02:27]}  Qxd5 {[%clk 0:02:06]} 21. Rxd5 {[%clk 0:02:28]}  Nf3+ {[%clk 0:02:04]} 22. Bxf3 {[%clk 0:02:27]}  Bxb2 {[%clk 0:02:05]} 23. Kg2 {[%clk 0:02:22]}  a5 {[%clk 0:02:04]} 24. g4 {[%clk 0:02:20]}  hxg4 {[%clk 0:02:02]} 25. Bxg4 {[%clk 0:02:21]}  Be5 {[%clk 0:01:49]} 26. Rh1 {[%clk 0:02:19]}  a4 {[%clk 0:01:49]} 27. Bd7 {[%clk 0:02:19]}  axb3 {[%clk 0:01:40]} 28. axb3 {[%clk 0:01:58]}  Red8 {[%clk 0:01:35]} 29. Bb5 {[%clk 0:01:50]}  Kg7 {[%clk 0:01:31]} 30. h5 {[%clk 0:01:50]}  Rh8 {[%clk 0:01:30]} 31. f4 {[%clk 0:01:46]}  Bf6 {[%clk 0:01:29]} 32. Kf3 {[%clk 0:01:46]}  gxh5 {[%clk 0:01:21]} 33. Rdxh5 {[%clk 0:01:47]}  Rxh5 {[%clk 0:01:21]} 34. Rxh5 {[%clk 0:01:48]}  Ra8 {[%clk 0:01:17]} 35. Rh2 {[%clk 0:01:40]}  Ra1 {[%clk 0:01:12]} 36. Ke4 {[%clk 0:01:40]}  Rd1 {[%clk 0:01:07]} 37. Kf5 {[%clk 0:01:36]}  Rg1 {[%clk 0:00:50]} 38. Bc6 {[%clk 0:01:35]}  Bc3 {[%clk 0:00:51]} 39. Bd5 {[%clk 0:01:34]}  Rg3 {[%clk 0:00:44]} 40. Ke4 {[%clk 0:01:21]}  Kg6 {[%clk 0:00:21]} 41. Kd3 {[%clk 0:01:19]}  Bd4 {[%clk 0:00:18]} 42. Re2 {[%clk 0:01:19]}  Kf5 {[%clk 0:00:16]} 43. Bxf7 {[%clk 0:01:17]}  Bf6 {[%clk 0:00:07]} 44. Rh2 {[%clk 0:01:15]}  Bd4 {[%clk 0:00:05]} 45. Re2 {[%clk 0:01:15]}  Bf6 {[%clk 0:00:05]} 46. Bd5 {[%clk 0:01:15]}  Rh3 {[%clk 0:00:02]} 47. Bc6 {[%clk 0:01:05]}  Kg6 {[%clk 0:00:01]} 48. Ke4 {[%clk 0:01:05]}  Rg3 {[%clk 0:00:01]} 49. Kd5 {[%clk 0:01:05]}  Bc3 {[%clk 0:00:01]} 50. Ke6 {[%clk 0:01:05]} 1-0


[Site "https://www.chess.com"]

[Event "Titled Tuesday Blitz February 07 Early 2023"]
[White "Bruzon Batista, Lazaro"]
[Black "Song, Julien"]
[WhiteFideId "3503739"]
[BlackFideId "659487"]
[WhiteElo "2611"]
[BlackElo "2350"]
[Result "1-0"]
[Round "02"]
[TimeControl "180+2"]
[Date "2023.02.07"]
[WhiteClock "0:01:21"]
[BlackClock "0:00:56"]

1. e4 {[%clk 0:03:00]}  e6 {[%clk 0:02:40]} 2. d4 {[%clk 0:03:00]}  d5 {[%clk 0:02:39]} 3. Nd2 {[%clk 0:03:00]}  c5 {[%clk 0:02:39]} 4. exd5 {[%clk 0:02:59]}  Qxd5 {[%clk 0:02:40]} 5. dxc5 {[%clk 0:02:59]}  Qxc5 {[%clk 0:02:39]} 6. Ngf3 {[%clk 0:02:59]}  Nf6 {[%clk 0:02:39]} 7. Bd3 {[%clk 0:02:59]}  Nbd7 {[%clk 0:02:38]} 8. Nb3 {[%clk 0:02:58]}  Qc7 {[%clk 0:02:39]} 9. Qe2 {[%clk 0:02:58]}  Bd6 {[%clk 0:02:37]} 10. O-O {[%clk 0:02:57]}  O-O {[%clk 0:02:37]} 11. a4 {[%clk 0:02:55]}  b6 {[%clk 0:02:29]} 12. a5 {[%clk 0:02:54]}  Bb7 {[%clk 0:02:29]} 13. Nbd4 {[%clk 0:02:52]}  Ne5 {[%clk 0:02:12]} 14. Re1 {[%clk 0:02:27]}  Nxf3+ {[%clk 0:02:12]} 15. Nxf3 {[%clk 0:02:27]}  Bxf3 {[%clk 0:02:11]} 16. Qxf3 {[%clk 0:02:27]}  Bxh2+ {[%clk 0:02:11]} 17. Kh1 {[%clk 0:02:24]}  Bd6 {[%clk 0:02:10]} 18. axb6 {[%clk 0:02:23]}  Qxb6 {[%clk 0:02:10]} 19. Ra6 {[%clk 0:02:18]}  Qc7 {[%clk 0:02:09]} 20. g3 {[%clk 0:02:15]}  Nd5 {[%clk 0:02:05]} 21. c3 {[%clk 0:02:09]}  Rfd8 {[%clk 0:01:51]} 22. Kg2 {[%clk 0:02:07]}  h6 {[%clk 0:01:42]} 23. Be4 {[%clk 0:02:04]}  Bf8 {[%clk 0:01:38]} 24. Bb1 {[%clk 0:01:55]}  Qb7 {[%clk 0:01:32]} 25. Ra4 {[%clk 0:01:52]}  Rac8 {[%clk 0:01:25]} 26. Rh4 {[%clk 0:01:49]}  Rc7 {[%clk 0:01:19]} 27. Be4 {[%clk 0:01:43]}  Qb6 {[%clk 0:01:08]} 28. Reh1 {[%clk 0:01:42]}  Nf6 {[%clk 0:01:07]} 29. Bxh6 {[%clk 0:01:24]}  gxh6 {[%clk 0:00:56]} 30. Qxf6 {[%clk 0:01:24]}  Bg7 {[%clk 0:00:56]} 31. Qxd8+ {[%clk 0:01:21]} 1-0


[Site "https://www.chess.com"]

[Event "Titled Tuesday Blitz February 07 Early 2023"]
[White "Czernek, Tymon"]
[Black "Kamsky, Gata"]
[WhiteFideId "1199510"]
[BlackFideId "2000024"]
[WhiteElo "2314"]
[BlackElo "2665"]
[Result "0-1"]
[Round "02"]
[TimeControl "180+2"]
[Date "2023.02.07"]
[WhiteClock "0:00:13"]
[BlackClock "0:00:17"]

1. e4 {[%clk 0:03:00]}  c5 {[%clk 0:02:56]} 2. Nf3 {[%clk 0:03:00]}  e6 {[%clk 0:02:54]} 3. d4 {[%clk 0:03:01]}  cxd4 {[%clk 0:02:54]} 4. Nxd4 {[%clk 0:03:02]}  a6 {[%clk 0:02:53]} 5. Bd3 {[%clk 0:03:01]}  Nf6 {[%clk 0:02:44]} 6. O-O {[%clk 0:02:49]}  d6 {[%clk 0:02:34]} 7. Nc3 {[%clk 0:02:32]}  Nbd7 {[%clk 0:02:29]} 8. Kh1 {[%clk 0:02:25]}  Nc5 {[%clk 0:02:27]} 9. f4 {[%clk 0:02:25]}  Qc7 {[%clk 0:02:17]} 10. Qf3 {[%clk 0:02:17]}  Be7 {[%clk 0:02:08]} 11. f5 {[%clk 0:02:09]}  e5 {[%clk 0:01:53]} 12. Nde2 {[%clk 0:02:09]}  b5 {[%clk 0:01:47]} 13. Bg5 {[%clk 0:02:06]}  Bb7 {[%clk 0:01:46]} 14. Bxf6 {[%clk 0:01:57]}  Bxf6 {[%clk 0:01:44]} 15. Nd5 {[%clk 0:01:57]}  Bxd5 {[%clk 0:01:42]} 16. exd5 {[%clk 0:01:58]}  e4 {[%clk 0:01:41]} 17. Bxe4 {[%clk 0:01:56]}  Bxb2 {[%clk 0:01:40]} 18. Rab1 {[%clk 0:01:48]}  Be5 {[%clk 0:01:39]} 19. f6 {[%clk 0:01:42]}  Bxf6 {[%clk 0:01:34]} 20. Ng3 {[%clk 0:01:39]}  Be5 {[%clk 0:01:30]} 21. Nh5 {[%clk 0:01:25]}  g6 {[%clk 0:01:29]} 22. Nf6+ {[%clk 0:01:17]}  Bxf6 {[%clk 0:01:24]} 23. Qxf6 {[%clk 0:01:18]}  O-O {[%clk 0:01:24]} 24. Bf3 {[%clk 0:01:15]}  Rae8 {[%clk 0:01:20]} 25. h3 {[%clk 0:01:12]}  Nd7 {[%clk 0:01:19]} 26. Qf4 {[%clk 0:01:09]}  Ne5 {[%clk 0:01:17]} 27. a4 {[%clk 0:01:05]}  Rb8 {[%clk 0:01:05]} 28. axb5 {[%clk 0:01:01]}  axb5 {[%clk 0:01:05]} 29. Be2 {[%clk 0:01:00]}  Qxc2 {[%clk 0:00:56]} 30. Bxb5 {[%clk 0:01:00]}  Qc5 {[%clk 0:00:56]} 31. Qa4 {[%clk 0:00:37]}  Qxd5 {[%clk 0:00:51]} 32. Rfd1 {[%clk 0:00:37]}  Qc5 {[%clk 0:00:46]} 33. Rdc1 {[%clk 0:00:36]}  Qe3 {[%clk 0:00:41]} 34. Re1 {[%clk 0:00:34]}  Qg3 {[%clk 0:00:35]} 35. Qd4 {[%clk 0:00:34]}  Rfd8 {[%clk 0:00:32]} 36. Re3 {[%clk 0:00:24]}  Qg5 {[%clk 0:00:31]} 37. Reb3 {[%clk 0:00:18]}  h5 {[%clk 0:00:29]} 38. Ba4 {[%clk 0:00:14]}  Rxb3 {[%clk 0:00:28]} 39. Bxb3 {[%clk 0:00:15]}  Kg7 {[%clk 0:00:27]} 40. Bd5 {[%clk 0:00:15]}  Rd7 {[%clk 0:00:27]} 41. Rb8 {[%clk 0:00:15]}  Rc7 {[%clk 0:00:24]} 42. Rb1 {[%clk 0:00:14]}  Rc1+ {[%clk 0:00:21]} 43. Rxc1 {[%clk 0:00:14]}  Qxc1+ {[%clk 0:00:22]} 44. Kh2 {[%clk 0:00:15]}  Qg5 {[%clk 0:00:22]} 45. Be4 {[%clk 0:00:14]}  Qf6 {[%clk 0:00:20]} 46. Kh1 {[%clk 0:00:12]}  h4 {[%clk 0:00:20]} 47. Bd3 {[%clk 0:00:11]}  Nxd3 {[%clk 0:00:19]} 48. Qxd3 {[%clk 0:00:11]}  Qe5 {[%clk 0:00:19]} 49. Kg1 {[%clk 0:00:12]}  d5 {[%clk 0:00:19]} 50. Qd2 {[%clk 0:00:12]}  d4 {[%clk 0:00:19]} 51. Kf1 {[%clk 0:00:12]}  Qe4 {[%clk 0:00:18]} 52. Kf2 {[%clk 0:00:13]}  Kf6 {[%clk 0:00:17]} 53. Qa5 {[%clk 0:00:12]}  Qf5+ {[%clk 0:00:16]} 54. Qxf5+ {[%clk 0:00:12]}  Kxf5 {[%clk 0:00:17]} 55. Kf3 {[%clk 0:00:13]}  g5 {[%clk 0:00:17]} 0-1


[Site "https://www.chess.com"]

[Event "Titled Tuesday Blitz February 07 Early 2023"]
[White "Kodinets, Konstantin L."]
[Black "Timofeev, Artyom"]
[WhiteFideId "4122011"]
[BlackFideId "4140419"]
[WhiteElo "2409"]
[BlackElo "2567"]
[Result "0-1"]
[Round "02"]
[TimeControl "180+2"]
[Date "2023.02.07"]
[WhiteClock "0:00:13"]
[BlackClock "0:00:19"]

1. d4 {[%clk 0:03:00]}  d5 {[%clk 0:02:58]} 2. Nf3 {[%clk 0:03:00]}  e6 {[%clk 0:02:57]} 3. Bf4 {[%clk 0:03:00]}  Bd6 {[%clk 0:02:56]} 4. e3 {[%clk 0:03:00]}  Nf6 {[%clk 0:02:55]} 5. Nbd2 {[%clk 0:02:59]}  O-O {[%clk 0:02:53]} 6. Bd3 {[%clk 0:02:59]}  b6 {[%clk 0:02:53]} 7. Ne5 {[%clk 0:02:58]}  Bb7 {[%clk 0:02:49]} 8. Qf3 {[%clk 0:02:57]}  c5 {[%clk 0:02:40]} 9. c3 {[%clk 0:02:57]}  Nc6 {[%clk 0:02:39]} 10. Qh3 {[%clk 0:02:56]}  Ne7 {[%clk 0:02:31]} 11. g4 {[%clk 0:02:34]}  Ng6 {[%clk 0:02:25]} 12. Bg3 {[%clk 0:02:33]}  Ne4 {[%clk 0:02:16]} 13. f4 {[%clk 0:02:32]}  Bxe5 {[%clk 0:01:50]} 14. fxe5 {[%clk 0:02:29]}  f6 {[%clk 0:01:49]} 15. exf6 {[%clk 0:02:26]}  Qxf6 {[%clk 0:01:47]} 16. O-O-O {[%clk 0:01:41]}  Qg5 {[%clk 0:01:45]} 17. Bxe4 {[%clk 0:01:18]}  dxe4 {[%clk 0:01:44]} 18. Bd6 {[%clk 0:01:06]}  Rfd8 {[%clk 0:01:22]} 19. dxc5 {[%clk 0:01:00]}  bxc5 {[%clk 0:01:19]} 20. Nb3 {[%clk 0:01:01]}  c4 {[%clk 0:01:11]} 21. Na1 {[%clk 0:01:01]}  Qa5 {[%clk 0:00:47]} 22. a3 {[%clk 0:00:35]}  Qb6 {[%clk 0:00:43]} 23. Qg3 {[%clk 0:00:32]}  Rd7 {[%clk 0:00:26]} 24. Be5 {[%clk 0:00:30]}  Rad8 {[%clk 0:00:24]} 25. Rxd7 {[%clk 0:00:28]}  Rxd7 {[%clk 0:00:24]} 26. Nc2 {[%clk 0:00:21]}  Qa5 {[%clk 0:00:20]} 27. Bb8 {[%clk 0:00:14]}  e5 {[%clk 0:00:19]} 28. Rd1 {[%clk 0:00:14]}  Rxd1+ {[%clk 0:00:18]} 29. Kxd1 {[%clk 0:00:14]}  Qd8+ {[%clk 0:00:19]} 30. Kc1 {[%clk 0:00:13]}  Qxb8 {[%clk 0:00:19]} 0-1


[Site "https://www.chess.com"]

[Event "Titled Tuesday Blitz February 07 Early 2023"]
[White "Urazayev, Arystanbek"]
[Black "Kvaloy, Aksel Bu"]
[WhiteFideId "13709810"]
[BlackFideId "1528815"]
[WhiteElo "2460"]
[BlackElo "2321"]
[Result "1/2-1/2"]
[Round "02"]
[TimeControl "180+2"]
[Date "2023.02.07"]
[WhiteClock "0:00:10"]
[BlackClock "0:00:13"]

1. e4 {[%clk 0:03:00]}  e5 {[%clk 0:02:59]} 2. Nf3 {[%clk 0:03:01]}  Nf6 {[%clk 0:02:59]} 3. Nc3 {[%clk 0:03:00]}  Nc6 {[%clk 0:02:59]} 4. d4 {[%clk 0:03:00]}  exd4 {[%clk 0:03:00]} 5. Nxd4 {[%clk 0:03:00]}  Bb4 {[%clk 0:03:00]} 6. Nxc6 {[%clk 0:03:00]}  bxc6 {[%clk 0:03:01]} 7. Bd3 {[%clk 0:03:01]}  d5 {[%clk 0:03:01]} 8. Bd2 {[%clk 0:03:00]}  O-O {[%clk 0:02:56]} 9. O-O {[%clk 0:03:00]}  Bxc3 {[%clk 0:02:57]} 10. Bxc3 {[%clk 0:03:00]}  Nxe4 {[%clk 0:02:57]} 11. Bxe4 {[%clk 0:03:00]}  dxe4 {[%clk 0:02:58]} 12. Qe2 {[%clk 0:03:01]}  Qe7 {[%clk 0:02:52]} 13. Qe3 {[%clk 0:03:00]}  Bf5 {[%clk 0:02:49]} 14. Rfd1 {[%clk 0:02:56]}  Bg6 {[%clk 0:02:45]} 15. Qd4 {[%clk 0:02:49]}  f5 {[%clk 0:02:42]} 16. Bb4 {[%clk 0:02:49]}  Qg5 {[%clk 0:02:32]} 17. Bxf8 {[%clk 0:02:48]}  Rxf8 {[%clk 0:02:33]} 18. Qc4+ {[%clk 0:02:28]}  Bf7 {[%clk 0:02:22]} 19. Qxc6 {[%clk 0:02:26]}  Bh5 {[%clk 0:02:22]} 20. Qc4+ {[%clk 0:02:25]}  Kh8 {[%clk 0:02:19]} 21. Qc5 {[%clk 0:02:25]}  Rg8 {[%clk 0:02:14]} 22. Qxc7 {[%clk 0:02:22]}  f4 {[%clk 0:02:10]} 23. h4 {[%clk 0:01:56]}  Qxh4 {[%clk 0:02:03]} 24. Rd4 {[%clk 0:01:55]}  Qg5 {[%clk 0:01:50]} 25. g3 {[%clk 0:01:32]}  Qf6 {[%clk 0:00:54]} 26. Qd6 {[%clk 0:01:14]}  fxg3 {[%clk 0:00:29]} 27. Qxf6 {[%clk 0:01:14]}  gxf6 {[%clk 0:00:30]} 28. fxg3 {[%clk 0:01:13]}  Rxg3+ {[%clk 0:00:29]} 29. Kh2 {[%clk 0:01:14]}  Re3 {[%clk 0:00:27]} 30. Rg1 {[%clk 0:01:14]}  Bg6 {[%clk 0:00:20]} 31. Rd7 {[%clk 0:01:05]}  f5 {[%clk 0:00:08]} 32. Rgd1 {[%clk 0:00:56]}  Re2+ {[%clk 0:00:09]} 33. Kg3 {[%clk 0:00:53]}  Rxc2 {[%clk 0:00:09]} 34. Rxa7 {[%clk 0:00:51]}  Rc8 {[%clk 0:00:10]} 35. Kf4 {[%clk 0:00:49]}  Re8 {[%clk 0:00:10]} 36. Rdd7 {[%clk 0:00:41]}  e3 {[%clk 0:00:09]} 37. Re7 {[%clk 0:00:41]}  Rb8 {[%clk 0:00:08]} 38. Kxe3 {[%clk 0:00:36]}  f4+ {[%clk 0:00:08]} 39. Kxf4 {[%clk 0:00:35]}  Kg8 {[%clk 0:00:08]} 40. b3 {[%clk 0:00:35]}  Kf8 {[%clk 0:00:08]} 41. Reb7 {[%clk 0:00:34]}  Rc8 {[%clk 0:00:07]} 42. a4 {[%clk 0:00:27]}  Rc2 {[%clk 0:00:06]} 43. Ra8+ {[%clk 0:00:27]}  Be8 {[%clk 0:00:06]} 44. Rbb8 {[%clk 0:00:26]}  Re2 {[%clk 0:00:07]} 45. a5 {[%clk 0:00:27]}  Kf7 {[%clk 0:00:05]} 46. Rxe8 {[%clk 0:00:27]}  Rxe8 {[%clk 0:00:05]} 47. Rxe8 {[%clk 0:00:28]}  Kxe8 {[%clk 0:00:06]} 48. a6 {[%clk 0:00:28]}  h6 {[%clk 0:00:07]} 49. a7 {[%clk 0:00:28]}  h5 {[%clk 0:00:08]} 50. a8=Q+ {[%clk 0:00:28]}  Kd7 {[%clk 0:00:09]} 51. Qh1 {[%clk 0:00:29]}  Ke7 {[%clk 0:00:10]} 52. Qxh5 {[%clk 0:00:30]}  Kf6 {[%clk 0:00:11]} 53. Qa5 {[%clk 0:00:23]}  Kg7 {[%clk 0:00:12]} 54. b4 {[%clk 0:00:24]}  Kf6 {[%clk 0:00:12]} 55. b5 {[%clk 0:00:15]}  Kf7 {[%clk 0:00:13]} 56. Qb6 {[%clk 0:00:10]}  Ke7 {[%clk 0:00:13]} 1/2-1/2


[Site "https://www.chess.com"]